fUSD/lending_fUSD_20241118
["ID","MTS","AMOUNT","RATE_DAILY","PERIOD"]
[342507597,1731945038277,-1127.15,9.999e-05,2]
[342507598,1731945038287,-1127.15,9.999e-05,2]
[342507599,1731945038297,-1127.15,9.999e-05,2]
[342507600,1731945038307,-1127.15,9.999e-05,2]
[342507601,1731945038316,-1127.15,9.999e-05,2]
[342507602,1731945038326,-1127.15,9.999e-05,2]
[342507603,1731945038337,-1127.15,9.999e-05,2]
[342507604,1731945038348,-1127.15,9.999e-05,2]
[342507605,1731945038360,-1127.30555743,9.999e-05,2]
[342507606,1731945038370,-680.08346391,9.999e-05,2]
[342507607,1731945038382,-1232.58653609,9.999e-05,2]
[342507609,1731945038392,-320.4634639,9.999e-05,2]
[342507610,1731945038403,-253.3709981,9.999e-05,2]
[342507611,1731945038419,-1338.835538,9.999e-05,2]
[342507612,1731945038429,-1912.67,9.999e-05,2]
[342507613,1731945038438,-1912.67,9.999e-05,2]
[342507614,1731945038448,-1912.67,9.999e-05,2]
[342507615,1731945038457,-1912.67,9.999e-05,2]
[342507616,1731945038467,-1912.67,9.999e-05,2]
[342507617,1731945038479,-1912.67,9.999e-05,2]
[342507618,1731945038488,-1912.67,9.999e-05,2]
[342507619,1731945038498,-1912.67,9.999e-05,2]
[342507620,1731945038507,-1912.67,9.999e-05,2]
[342507621,1731945038517,-1912.67,9.999e-05,2]
[342507622,1731945038526,-1912.74656381,9.999e-05,2]
[342507623,1731945038536,-2654.26,9.999e-05,2]
[342507624,1731945038546,-2654.26,9.999e-05,2]
[342507625,1731945038556,-2654.26,9.999e-05,2]
[342507626,1731945038565,-1400.35004819,9.999e-05,2]
[342507627,1731945038577,-1253.90995181,9.999e-05,2]
[342507628,1731945038587,-2654.26,9.999e-05,2]
[342507629,1731945038596,-2654.26,9.999e-05,2]
[342507630,1731945038605,-1325.82834038,9.999e-05,2]
[342507631,1731945038616,-1328.43165962,9.999e-05,2]
[342507632,1731945038626,-2654.26,9.999e-05,2]
[342507633,1731945038635,-2654.26,9.999e-05,2]
[342507634,1731945038646,-2654.26,9.999e-05,2]
[342507635,1731945038656,-2654.26,9.999e-05,2]
[342507636,1731945038666,-2654.38,9.999e-05,2]
[342507637,1731945038675,-8209.44,9.999e-05,2]
[342507638,1731945038684,-8209.44,9.999e-05,2]
[342507639,1731945038694,-8209.44,9.999e-05,2]
[342507640,1731945038704,-8209.44,9.999e-05,2]
[342507641,1731945038713,-8209.44,9.999e-05,2]
[342507642,1731945038725,-8209.44,9.999e-05,2]
[342507643,1731945038735,-8209.44,9.999e-05,2]
[342507644,1731945038744,-8209.44,9.999e-05,2]
[342507645,1731945038753,-8209.44,9.999e-05,2]
[342507646,1731945038763,-8209.44,9.999e-05,2]
[342507647,1731945038772,-8209.44,9.999e-05,2]
[342507648,1731945038781,-8209.56462376,9.999e-05,2]
[342507649,1731945038791,-500.0,9.999e-05,2]
[342507650,1731945038801,-500.0,9.999e-05,2]
[342507651,1731945038811,-500.0,9.999e-05,2]
[342507652,1731945038820,-500.0,9.999e-05,2]
[342507653,1731945038830,-500.0,9.999e-05,2]
[342507654,1731945038840,-500.0,9.999e-05,2]
[342507655,1731945038850,-558.4808,9.999e-05,2]
[342507656,1731945038859,-312.00000007,0.0001,2]
[342507657,1731945038868,-93192.4629056,0.0001,2]
[342507658,1731945038878,-52043.81563643,0.0001,2]
[342507660,1731945038890,-31090.0,0.0001,2]
[342507682,1731945040101,-3035.67,0.0001,2]
[342507683,1731945040114,-336561.26314331,0.0001,2]
[342507684,1731945040130,-2767.4311657,0.0001,2]
[342507685,1731945040142,-643.96743286,0.0001,2]
[342507686,1731945040154,-885.54070239,0.0001,2]
[342507687,1731945040165,-291.15119334,0.0001,2]
[342507688,1731945040178,-1554.99999999,0.0001,2]
[342507689,1731945040190,-890.90712876,0.0001,2]
[342507690,1731945040208,-822.199993,0.0001,2]
[342507691,1731945040221,-3395.75,0.0001,2]
[342507692,1731945040233,-1504.9551907,0.0001,2]
[342507693,1731945040244,-3520.69572264,0.0001,2]
[342507694,1731945040256,-22013.39630624,0.0001,2]
[342507695,1731945040324,-9228.0,0.0001,2]
[342507697,1731945040335,-3251.46482068,0.0001,2]
[342507728,1731945042825,-947.5604741,0.0001,2]
[342507732,1731945042837,-2146.29471278,0.0001,2]
[342507735,1731945042849,-597.91628127,0.0001,2]
[342507741,1731945042948,-542.3641364,0.0001,2]
[342507742,1731945043071,-32010.08800001,0.0001,2]
[342507743,1731945043083,-2572.29064,0.0001,2]
[342507744,1731945043094,-135022.2996049,0.0001,2]
[342507745,1731945043105,-785.895,0.0001,2]
[342507746,1731945043116,-5987.67385568,0.0001,2]
[342507747,1731945043127,-6606.68928456,0.0001,2]
[342507748,1731945043138,-2348.10104,0.0001,2]
[342507749,1731945043187,-1007.875,0.0001,2]
[342507751,1731945043198,-15039.164975,0.0001,2]
[342507752,1731945043209,-5910.67914302,0.0001,2]
[342507753,1731945043221,-4575.38736873,0.0001,2]
[342507754,1731945043235,-3001.26048463,0.0001,2]
[342507755,1731945043246,-5596.758467,0.0001,2]
[342507756,1731945043257,-6295.50032112,0.0001,2]
[342507757,1731945043269,-470.1576,0.0001,2]
[342507777,1731945045756,-2500.0,9.897e-05,2]
[342507780,1731945045766,-2213067.00938176,0.0001,2]
[342507783,1731945045777,-57735.74856148,0.0001,2]
[342507784,1731945045789,-1917.02443207,0.0001,2]
[342507785,1731945045894,-3384.58587734,0.0001,2]
[342507786,1731945045905,-293.17000029,0.0001,2]
[342507787,1731945045918,-10788.24918236,0.0001,2]
[342507788,1731945045929,-12157.9425973,0.0001,2]
[342507789,1731945045941,-7506.52711208,0.0001,2]
[342507790,1731945045953,-12598.0512,0.0001,2]
[342507791,1731945045964,-7352.50536539,0.0001,2]
[342507792,1731945045977,-3542.70815698,0.0001,2]
[342507793,1731945046039,-2291.9,0.0001,2]
[342507794,1731945046050,-6545.77027601,0.0001,2]
[342507795,1731945046061,-1170.078006,0.0001,2]
[342507796,1731945046072,-8899.7,0.0001,2]
[342507797,1731945046083,-454971.02719492,0.0001,2]
[342507798,1731945046094,-1041.48176591,0.0001,2]
[342507799,1731945046105,-85266.63846578,0.0001,2]
[342507800,1731945046116,-14651.10370018,0.0001,2]
[342507801,1731945046169,-14137.5007,0.0001,2]
[342507802,1731945046180,-15139.87319,0.0001,2]
[342507803,1731945046192,-450450.00000019,0.0001,2]
[342509700,1731945066794,151.0,8.329e-05,2]
[342510277,1731945083453,151.0,8.329e-05,2]
[342510278,1731945104478,151.0,8.329e-05,2]
[342510279,1731945113772,151.0,8.329e-05,2]
[342510280,1731945131620,151.0,8.329e-05,2]
[342510281,1731945142012,151.0,8.329e-05,2]
[342510282,1731945152440,151.0,8.329e-05,2]
[342510283,1731945178848,151.0,8.288e-05,2]
[342510284,1731945207900,151.0,8.5e-05,2]
[342510285,1731945337574,157.472,0.0002277,120]
[342510286,1731945390242,500.0,8.22e-05,2]
[342510287,1731945445585,237.53079639,0.00022,120]
[342510288,1731945557545,722.51,8.219e-05,2]
[342510289,1731945603308,192.7301308,8.219e-05,2]
[342510292,1731945720662,500.0,8.22e-05,2]
[342510293,1731945762439,500.0,8.22e-05,2]
[342510294,1731945915452,250.0,8.307e-05,2]
[342510301,1731946011897,1000.0,8.287e-05,2]
[342510302,1731946017494,181.03,8.299e-05,2]
[342510331,1731946231968,-392.52,8.875e-05,2]
[342510332,1731946231978,-392.52,8.877e-05,2]
[342510333,1731946231988,-392.52,8.879e-05,2]
[342510334,1731946231997,-392.52,8.882e-05,2]
[342510335,1731946232006,-392.52,8.884e-05,2]
[342510336,1731946232016,-392.52,8.886e-05,2]
[342510337,1731946232026,-392.52,8.889e-05,2]
[342510338,1731946232036,-392.52,8.891e-05,2]
[342510339,1731946232045,-392.52,8.893e-05,2]
[342510340,1731946232056,-392.52,8.896e-05,2]
[342510341,1731946232065,-392.52,8.898e-05,2]
[342510342,1731946232080,-392.52,8.9e-05,2]
[342510343,1731946232090,-392.52,8.903e-05,2]
[342510344,1731946232100,-392.52,8.905e-05,2]
[342510345,1731946232110,-392.52,8.907e-05,2]
[342510346,1731946232121,-392.52,8.91e-05,2]
[342510347,1731946232131,-392.52,8.912e-05,2]
[342510348,1731946232141,-392.52,8.914e-05,2]
[342510349,1731946232151,-392.52,8.917e-05,2]
[342510350,1731946232161,-392.52,8.919e-05,2]
[342510351,1731946232171,-945.04,8.985e-05,2]
[342510352,1731946232181,-300.0,8.999e-05,2]
[342510353,1731946232190,-1300.0,9e-05,3]
[342510354,1731946232201,-423.04967499,9.026e-05,2]
[342510355,1731946232211,-524.88,9.028e-05,2]
[342510356,1731946232221,-150.0,9.1e-05,2]
[342510357,1731946232231,-2700.0,9.1e-05,3]
[342510358,1731946232241,-4100.0,9.2e-05,3]
[342510359,1731946232251,-5500.0,9.3e-05,3]
[342510360,1731946232260,-1000.0,9.322e-05,2]
[342510361,1731946232270,-181.03,9.337e-05,2]
[342510362,1731946232280,-6900.0,9.4e-05,3]
[342510363,1731946232291,-1300.0,9.5e-05,3]
[342510364,1731946232301,-1300.0,9.6e-05,3]
[342510365,1731946232311,-786.56,9.67e-05,2]
[342510366,1731946232320,-3766.04,9.67e-05,2]
[342510367,1731946232336,-479.03,9.67e-05,2]
[342510368,1731946232346,-410.43,9.67e-05,2]
[342510369,1731946232356,-9999.99,9.67e-05,2]
[342510370,1731946232365,-12712.15612135,9.67e-05,2]
[342510371,1731946232377,-5610.79387865,9.67e-05,2]
[342510372,1731946232386,-150.99,9.67e-05,2]
[342510373,1731946232396,-1300.0,9.7e-05,3]
[342510374,1731946232406,-150.0,9.753e-05,2]
[342510375,1731946232416,-1000.0,9.795e-05,2]
[342510376,1731946232425,-917.082,9.796e-05,2]
[342510377,1731946232435,-1849.6058,9.796e-05,2]
[342510378,1731946232448,-25243.5973,9.796e-05,2]
[342510379,1731946232458,-35248.1572,9.796e-05,2]
[342510380,1731946232468,-13673.829,9.796e-05,2]
[342510381,1731946232482,-1973.9197,9.796e-05,2]
[342510382,1731946232492,-1571.305,9.796e-05,2]
[342510383,1731946232501,-784.92715871,9.796e-05,2]
[342510384,1731946232513,-587.66878533,9.796e-05,2]
[342510385,1731946232525,-870.62375596,9.796e-05,2]
[342510386,1731946232535,-1300.0,9.8e-05,3]
[342510387,1731946232544,-165.294,9.82e-05,2]
[342510388,1731946232555,-150.0,9.829e-05,2]
[342510389,1731946232565,-872.212,9.829e-05,2]
[342510390,1731946232579,-163.24590785,9.873e-05,2]
[342510391,1731946232588,-500.0,9.873e-05,2]
[342510392,1731946232597,-500.0,9.873e-05,2]
[342510393,1731946232607,-500.0,9.873e-05,2]
[342510394,1731946232616,-160.54825881,9.873e-05,2]
[342510395,1731946232625,-257.13089363,9.895e-05,2]
[342510396,1731946232634,-500.0,9.895e-05,2]
[342510397,1731946232644,-500.0,9.895e-05,2]
[342510398,1731946232654,-159.46586378,9.895e-05,2]
[342510399,1731946232663,-500.0,9.895e-05,2]
[342510400,1731946232676,-549.79036272,9.895e-05,2]
[342510401,1731946232686,-500.0,9.895e-05,2]
[342510402,1731946232696,-500.0,9.895e-05,2]
[342510403,1731946232705,-500.0,9.895e-05,2]
[342510404,1731946232716,-500.0,9.895e-05,2]
[342510405,1731946232725,-500.0,9.895e-05,2]
[342510406,1731946232734,-500.0,9.895e-05,2]
[342510407,1731946232743,-500.0,9.895e-05,2]
[342510408,1731946232755,-514.66331329,9.895e-05,2]
[342510409,1731946232765,-500.0,9.895e-05,2]
[342510410,1731946232775,-500.0,9.895e-05,2]
[342510411,1731946232789,-500.0,9.895e-05,2]
[342510412,1731946232802,-500.0,9.895e-05,2]
[342510413,1731946232811,-500.0,9.895e-05,2]
[342510414,1731946232822,-500.0,9.895e-05,2]
[342510415,1731946232834,-500.0,9.895e-05,2]
[342510416,1731946232844,-500.0,9.895e-05,2]
[342510417,1731946232853,-500.0,9.895e-05,2]
[342510418,1731946232862,-500.0,9.895e-05,2]
[342510419,1731946232872,-500.0,9.895e-05,2]
[342510420,1731946232882,-500.0,9.895e-05,2]
[342510421,1731946232891,-1043.339372,9.895e-05,2]
[342510422,1731946232902,-556.75727,9.895e-05,2]
[342510423,1731946232911,-500.0,9.895e-05,2]
[342510424,1731946232920,-500.0,9.895e-05,2]
[342510425,1731946232930,-500.0,9.895e-05,2]
[342510426,1731946232939,-500.0,9.895e-05,2]
[342510427,1731946232948,-151.36346782,9.895e-05,2]
[342510428,1731946232958,-500.0,9.895e-05,2]
[342510429,1731946232968,-500.0,9.895e-05,2]
[342510430,1731946232977,-500.0,9.895e-05,2]
[342510431,1731946232988,-500.0,9.895e-05,2]
[342510432,1731946232997,-500.0,9.895e-05,2]
[342510433,1731946233008,-500.0,9.895e-05,2]
[342510434,1731946233018,-500.0,9.895e-05,2]
[342510435,1731946233029,-501.71987372,9.895e-05,2]
[342510436,1731946233039,-198.24963397,9.895e-05,2]
[342510437,1731946233049,-500.0,9.895e-05,2]
[342510438,1731946233060,-500.0,9.895e-05,2]
[342510439,1731946233070,-607.7,9.895e-05,2]
[342510440,1731946233088,-500.0,9.895e-05,2]
[342510441,1731946233098,-500.0,9.895e-05,2]
[342510442,1731946233108,-500.0,9.895e-05,2]
[342510443,1731946233118,-500.0,9.895e-05,2]
[342510444,1731946233128,-500.0,9.895e-05,2]
[342510445,1731946233138,-500.0,9.895e-05,2]
[342510446,1731946233148,-367.51102579,9.895e-05,2]
[342510447,1731946233159,-500.0,9.895e-05,2]
[342510448,1731946233169,-500.0,9.895e-05,2]
[342510449,1731946233180,-500.0,9.895e-05,2]
[342510450,1731946233190,-500.0,9.895e-05,2]
[342510451,1731946233200,-500.0,9.895e-05,2]
[342510452,1731946233211,-500.0,9.895e-05,2]
[342510453,1731946233221,-500.0,9.895e-05,2]
[342510454,1731946233231,-500.0,9.895e-05,2]
[342510455,1731946233242,-500.0,9.895e-05,2]
[342510456,1731946233252,-500.0,9.895e-05,2]
[342510457,1731946233263,-500.0,9.895e-05,2]
[342510458,1731946233273,-500.0,9.895e-05,2]
[342510459,1731946233284,-500.0,9.895e-05,2]
[342510460,1731946233294,-492.09,9.895e-05,2]
[342510461,1731946233305,-500.0,9.895e-05,2]
[342510462,1731946233314,-441.75,9.895e-05,2]
[342510463,1731946233331,-500.0,9.895e-05,2]
[342510464,1731946233341,-500.0,9.895e-05,2]
[342510465,1731946233351,-273.8877,9.896e-05,2]
[342510466,1731946233361,-152174.94402251,9.896e-05,2]
[342510467,1731946233396,-999.948,9.896e-05,2]
[342510468,1731946233409,-50997.55097749,9.896e-05,2]
[342510469,1731946233420,-5310.9861,9.897e-05,2]
[342510470,1731946233431,-420.0,9.899e-05,2]
[342510471,1731946233443,-5000.0,9.9e-05,2]
[342510472,1731946233453,-1805.6806,9.9e-05,2]
[342510473,1731946233463,-1000.0,9.9e-05,2]
[342510474,1731946233474,-1000.0,9.9e-05,2]
[342510475,1731946233484,-1000.0,9.9e-05,2]
[342510476,1731946233494,-1000.0,9.9e-05,3]
[342510477,1731946233503,-1000.0,9.9e-05,2]
[342510478,1731946233513,-1919.0,9.9e-05,3]
[342510479,1731946233523,-211.13118009,9.95e-05,2]
[342510480,1731946233534,-568.98531063,9.95e-05,2]
[342510481,1731946233545,-568.98531063,9.952e-05,2]
[342510482,1731946233555,-715.91128072,9.952e-05,2]
[342510483,1731946233565,-568.98531063,9.956e-05,2]
[342510484,1731946233581,-715.91128072,9.964e-05,2]
[342510485,1731946233591,-568.98531063,9.972e-05,2]
[342510486,1731946233601,-2469.0,9.973e-05,2]
[342510487,1731946233618,-211.13118009,9.975e-05,2]
[342510488,1731946233629,-568.98531063,9.977e-05,2]
[342510489,1731946233639,-715.91128072,9.982e-05,2]
[342510490,1731946233651,-211.13118009,9.983e-05,2]
[342510491,1731946233662,-211.13118009,9.986e-05,2]
[342510492,1731946233674,-371.85889762,9.989e-05,2]
[342510493,1731946233688,-526.31030696,9.989e-05,2]
[342510494,1731946233699,-715.91128072,9.99e-05,2]
[342510495,1731946233710,-161.73064381,9.99e-05,2]
[342510496,1731946233721,-161.73064381,9.99e-05,2]
[342510497,1731946233737,-715.91128072,9.99e-05,2]
[342510498,1731946233748,-211.13118009,9.991e-05,2]
[342510499,1731946233759,-940.132,9.992e-05,2]
[342510500,1731946233770,-501.41253692,9.996e-05,2]
[342510501,1731946233780,-500.02746644,9.996e-05,2]
[342510502,1731946233791,-500.0,9.996e-05,2]
[342510503,1731946233802,-500.0,9.996e-05,2]
[342510504,1731946233813,-500.0,9.996e-05,2]
[342510505,1731946233829,-500.0,9.996e-05,2]
[342510506,1731946233840,-500.0,9.996e-05,2]
[342510507,1731946233850,-500.0,9.996e-05,2]
[342510508,1731946233861,-500.0,9.996e-05,2]
[342510509,1731946233872,-500.0,9.996e-05,2]
[342510510,1731946233884,-500.0,9.996e-05,2]
[342510511,1731946233894,-500.0,9.996e-05,2]
[342510512,1731946233907,-500.0,9.996e-05,2]
[342510513,1731946233918,-500.0,9.996e-05,2]
[342510514,1731946233929,-500.0,9.996e-05,2]
[342510515,1731946233940,-500.81079713,9.996e-05,2]
[342510516,1731946233952,-500.0,9.996e-05,2]
[342510517,1731946233963,-439.0461569,9.996e-05,2]
[342510518,1731946233974,-500.0,9.996e-05,2]
[342510519,1731946233985,-455.88801859,9.996e-05,2]
[342510520,1731946234030,-44.11198141,9.996e-05,2]
[342510521,1731946234041,-500.0,9.996e-05,2]
[342510522,1731946234052,-500.0,9.996e-05,2]
[342510523,1731946234062,-500.0,9.996e-05,2]
[342510524,1731946234076,-1043.339372,9.996e-05,2]
[342510525,1731946234088,-556.75727,9.996e-05,2]
[342510526,1731946234098,-500.0,9.996e-05,2]
[342510527,1731946234110,-500.0,9.996e-05,2]
[342510528,1731946234120,-500.0,9.996e-05,2]
[342510529,1731946234130,-500.0,9.996e-05,2]
[342510530,1731946234141,-514.28545033,9.996e-05,2]
[342510531,1731946234152,-500.0,9.996e-05,2]
[342510532,1731946234163,-500.0,9.996e-05,2]
[342510533,1731946234174,-607.7,9.996e-05,2]
[342510534,1731946234184,-500.0,9.996e-05,2]
[342510535,1731946234195,-500.0,9.996e-05,2]
[342510536,1731946234206,-167.84928337,9.996e-05,2]
[342510537,1731946234217,-500.0,9.996e-05,2]
[342510538,1731946234227,-537.4,9.996e-05,2]
[342510539,1731946234238,-500.0,9.996e-05,2]
[342510540,1731946234248,-500.0,9.996e-05,2]
[342510541,1731946234258,-500.0,9.996e-05,2]
[342510542,1731946234269,-542.24,9.996e-05,2]
[342510543,1731946234280,-500.0,9.996e-05,2]
[342510544,1731946234290,-500.0,9.996e-05,2]
[342510545,1731946234300,-500.0,9.996e-05,2]
[342510546,1731946234311,-500.0,9.996e-05,2]
[342510547,1731946234321,-500.0,9.997e-05,2]
[342510548,1731946234336,-500.0,9.997e-05,2]
[342510549,1731946234349,-500.0,9.997e-05,2]
[342510550,1731946234359,-502.54399393,9.997e-05,2]
[342510551,1731946234369,-500.0,9.997e-05,2]
[342510552,1731946234380,-500.0,9.997e-05,2]
[342510553,1731946234391,-500.0,9.997e-05,2]
[342510554,1731946234401,-500.0,9.997e-05,2]
[342510555,1731946234413,-620.07257379,9.997e-05,2]
[342510556,1731946234423,-500.0,9.997e-05,2]
[342510557,1731946234434,-500.0,9.997e-05,2]
[342510558,1731946234444,-500.0,9.997e-05,2]
[342510559,1731946234455,-500.0,9.997e-05,2]
[342510560,1731946234465,-635.60020057,9.997e-05,2]
[342510561,1731946234477,-500.0,9.997e-05,2]
[342510562,1731946234487,-500.0,9.997e-05,2]
[342510563,1731946234497,-500.0,9.997e-05,2]
[342510564,1731946234507,-487.79912185,9.997e-05,2]
[342510565,1731946234518,-500.0,9.997e-05,2]
[342510566,1731946234528,-500.0,9.997e-05,2]
[342510567,1731946234539,-528.68148675,9.997e-05,2]
[342510568,1731946234549,-500.0,9.997e-05,2]
[342510569,1731946234560,-500.0,9.997e-05,2]
[342510570,1731946234570,-469.66650084,9.997e-05,2]
[342510571,1731946234588,-38.29523247,9.997e-05,2]
[342510572,1731946234602,-500.0,9.997e-05,2]
[342510573,1731946234618,-500.0,9.997e-05,2]
[342510574,1731946234628,-500.0,9.997e-05,2]
[342510575,1731946234639,-500.13794761,9.997e-05,2]
[342510576,1731946234649,-500.0,9.997e-05,2]
[342510577,1731946234660,-500.0,9.997e-05,2]
[342510578,1731946234673,-500.0,9.997e-05,2]
[342510579,1731946234684,-500.0,9.997e-05,2]
[342510580,1731946234694,-500.0,9.997e-05,2]
[342510581,1731946234705,-500.0,9.997e-05,2]
[342510582,1731946234716,-302.16799564,9.997e-05,2]
[342510583,1731946234727,-500.0,9.997e-05,2]
[342510584,1731946234737,-500.0,9.997e-05,2]
[342510585,1731946234747,-500.0,9.997e-05,2]
[342510586,1731946234760,-500.31080506,9.997e-05,2]
[342510587,1731946234770,-500.0,9.997e-05,2]
[342510588,1731946234781,-500.0,9.997e-05,2]
[342510589,1731946234791,-500.0,9.997e-05,2]
[342510590,1731946234802,-500.0,9.997e-05,2]
[342510591,1731946234813,-500.0,9.997e-05,2]
[342510592,1731946234826,-500.0,9.997e-05,2]
[342510593,1731946234836,-500.0,9.997e-05,2]
[342510594,1731946234847,-500.0,9.997e-05,2]
[342510595,1731946234857,-500.0,9.997e-05,2]
[342510596,1731946234867,-500.0,9.997e-05,2]
[342510597,1731946234877,-500.0,9.997e-05,2]
[342510598,1731946234887,-500.0,9.997e-05,2]
[342510599,1731946234897,-500.81378799,9.997e-05,2]
[342510600,1731946234907,-500.0,9.997e-05,2]
[342510601,1731946234917,-500.0,9.997e-05,2]
[342510602,1731946234926,-500.0,9.997e-05,2]
[342510603,1731946234936,-500.0,9.997e-05,2]
[342510604,1731946234945,-500.0,9.997e-05,2]
[342510605,1731946234955,-500.0,9.997e-05,2]
[342510606,1731946234964,-500.0,9.997e-05,2]
[342510607,1731946234974,-500.0,9.997e-05,2]
[342510608,1731946234983,-500.0,9.997e-05,2]
[342510609,1731946234993,-500.0,9.997e-05,2]
[342510610,1731946235003,-500.0,9.997e-05,2]
[342510611,1731946235012,-500.0,9.997e-05,2]
[342510612,1731946235022,-500.0,9.997e-05,2]
[342510613,1731946235032,-500.0,9.997e-05,2]
[342510614,1731946235042,-500.0,9.997e-05,2]
[342510615,1731946235051,-500.0,9.997e-05,2]
[342510616,1731946235062,-500.0,9.997e-05,2]
[342510617,1731946235071,-500.0,9.997e-05,2]
[342510618,1731946235083,-500.0,9.997e-05,2]
[342510619,1731946235093,-500.0,9.997e-05,2]
[342510620,1731946235103,-500.0,9.997e-05,2]
[342510621,1731946235113,-500.0,9.997e-05,2]
[342510622,1731946235122,-425.78619939,9.997e-05,2]
[342510623,1731946235131,-500.0,9.997e-05,2]
[342510624,1731946235141,-500.0,9.997e-05,2]
[342510625,1731946235151,-500.0,9.997e-05,2]
[342510626,1731946235161,-500.80428188,9.997e-05,2]
[342510627,1731946235171,-500.0,9.997e-05,2]
[342510628,1731946235181,-500.0,9.997e-05,2]
[342510629,1731946235190,-500.0,9.997e-05,2]
[342510630,1731946235200,-501.43967137,9.997e-05,2]
[342510631,1731946235210,-352.06,9.997e-05,2]
[342510632,1731946235220,-500.0,9.998e-05,2]
[342510633,1731946235230,-582.05,9.998e-05,2]
[342510634,1731946235240,-500.0,9.998e-05,2]
[342510635,1731946235250,-206.446,9.998e-05,2]
[342510636,1731946235260,-153.22,9.998e-05,2]
[342510637,1731946235269,-920.712,9.998e-05,2]
[342510638,1731946235280,-1992.0,9.998e-05,2]
[342510639,1731946235290,-500.0,9.999e-05,2]
[342510640,1731946235299,-500.0,9.999e-05,2]
[342510641,1731946235309,-500.0,9.999e-05,2]
[342510642,1731946235319,-500.0,9.999e-05,2]
[342510643,1731946235335,-500.0,9.999e-05,2]
[342510644,1731946235344,-500.0,9.999e-05,2]
[342510645,1731946235354,-500.0,9.999e-05,2]
[342510646,1731946235363,-500.0,9.999e-05,2]
[342510648,1731946235373,-600.85,9.999e-05,2]
[342510649,1731946235382,-500.0,9.999e-05,2]
[342510651,1731946235391,-433.58051299,9.999e-05,2]
[342510653,1731946235401,-500.0,9.999e-05,2]
[342510655,1731946235410,-500.0,9.999e-05,2]
[342510656,1731946235420,-500.0,9.999e-05,2]
[342510657,1731946235429,-500.0,9.999e-05,2]
[342510658,1731946235439,-500.0,9.999e-05,2]
[342510659,1731946235448,-500.0,9.999e-05,2]
[342510660,1731946235458,-500.0,9.999e-05,2]
[342510661,1731946235467,-500.0,9.999e-05,2]
[342510662,1731946235476,-500.0,9.999e-05,2]
[342510664,1731946235486,-500.0,9.999e-05,2]
[342510666,1731946235495,-596.17044248,9.999e-05,2]
[342510668,1731946235705,-500.0,9.999e-05,2]
[342510669,1731946235715,-558.05737067,9.999e-05,2]
[342510670,1731946235726,-500.0,9.999e-05,2]
[342510671,1731946235735,-500.0,9.999e-05,2]
[342510672,1731946235744,-500.0,9.999e-05,2]
[342510673,1731946235755,-500.0,9.999e-05,2]
[342510674,1731946235765,-500.0,9.999e-05,2]
[342510675,1731946235775,-500.0,9.999e-05,2]
[342510676,1731946235785,-500.0,9.999e-05,2]
[342510677,1731946235795,-500.0,9.999e-05,2]
[342510678,1731946235804,-298.72,9.999e-05,2]
[342510679,1731946235815,-500.0,9.999e-05,2]
[342510680,1731946235827,-500.0,9.999e-05,2]
[342510681,1731946235836,-500.0,9.999e-05,2]
[342510682,1731946235845,-500.0,9.999e-05,2]
[342510683,1731946235856,-500.0,9.999e-05,2]
[342510684,1731946235866,-500.0,9.999e-05,2]
[342510685,1731946235876,-500.0,9.999e-05,2]
[342510686,1731946235886,-500.0,9.999e-05,2]
[342510687,1731946235895,-500.0,9.999e-05,2]
[342510688,1731946235905,-500.0,9.999e-05,2]
[342510689,1731946235915,-500.0,9.999e-05,2]
[342510690,1731946235925,-500.0,9.999e-05,2]
[342510691,1731946235936,-500.0,9.999e-05,2]
[342510692,1731946235946,-500.0,9.999e-05,2]
[342510693,1731946235956,-500.0,9.999e-05,2]
[342510694,1731946235966,-500.0,9.999e-05,2]
[342510695,1731946235975,-500.0,9.999e-05,2]
[342510696,1731946235985,-500.0,9.999e-05,2]
[342510697,1731946235996,-185.44,9.999e-05,2]
[342510698,1731946236005,-500.0,9.999e-05,2]
[342510699,1731946236015,-500.0,9.999e-05,2]